bitfinex/quotes_SOLUSD_20250809
["timestamp","ask_amount","ask_price","bid_price","bid_amount"]
[1754708533742,76.63370997,177.72,177.71,1e-08]
[1754708536065,77.33370997,177.72,177.71,1e-08]
[1754708541278,51.33370997,177.72,177.71,1e-08]
[1754708541860,66.43992554,177.72,177.71,1e-08]
[1754708542279,73.23332501,177.72,177.71,1e-08]
[1754708542979,66.43992554,177.72,177.71,1e-08]
[1754708543173,68.53204713,177.72,177.71,1e-08]
[1754708545673,66.43992554,177.72,177.71,1e-08]
[1754708546679,50.63370997,177.72,177.71,1e-08]
[1754708546978,50.20722526,177.72,177.71,0.71000001]
[1754708547193,50.63370997,177.72,177.71,0.71000001]
[1754708547483,47.35855042,177.72,177.71,0.71000001]
[1754708547685,50.63370997,177.72,177.71,0.71000001]
[1754708548983,47.35855042,177.72,177.71,0.71000001]
[1754708552757,39.05,177.72,177.71,0.71000001]
[1754708552962,0.03,177.72,177.71,3.98515956]
[1754708553179,0.03,177.72,177.71,0.71000001]
[1754708553377,0.03,177.72,177.71,3.98515956]
[1754708560093,0.45648471,177.72,177.71,1e-08]
[1754708560269,1.11648471,177.72,177.71,1e-08]
[1754708561994,6.74331342,177.72,177.71,1e-08]
[1754708562186,14.07363197,177.72,177.71,1e-08]
[1754708562777,10.79847242,177.72,177.71,1e-08]
[1754708563090,14.07363197,177.72,177.71,1e-08]
[1754708576981,29.17984754,177.72,177.71,1e-08]
[1754708577582,35.96888474,177.72,177.71,1e-08]
[1754708578482,31.26745323,177.72,177.71,1e-08]
[1754708579000,35.96888474,177.72,177.71,1e-08]
[1754708579297,29.17984754,177.72,177.71,1e-08]
[1754708579879,26.42648471,177.7,177.69,1e-08]
[1754708580082,83.80785983,177.7,177.69,1e-08]
[1754708580300,84.46785983,177.7,177.69,1e-08]
[1754708580478,86.72347683,177.7,177.69,1e-08]
[1754708581180,92.35093884,177.7,177.69,1e-08]
[1754708581790,89.07577929,177.7,177.69,1e-08]
[1754708582116,92.35093884,177.7,177.69,1e-08]
[1754708583097,76.58472327,177.7,177.69,1e-08]
[1754708583300,76.58472327,177.7,177.69,0.72000001]
[1754708583491,76.30040013,177.7,177.69,0.72000001]
[1754708583899,76.15823856,177.7,177.69,0.72000001]
[1754708584078,76.30040013,177.7,177.69,0.72000001]
[1754708584276,34.16740215,177.7,177.69,0.72000001]
[1754708584496,72.88307901,177.7,177.69,0.72000001]
[1754708584884,77.24472327,177.7,177.69,1e-08]
[1754708587089,76.58472327,177.7,177.69,1e-08]
[1754708587982,77.24472327,177.7,177.69,1e-08]
[1754708588585,76.58472327,177.7,177.69,1e-08]
[1754708588784,78.44745875,177.7,177.69,1e-08]
[1754708589193,78.44745875,177.7,177.69,0.72000001]
[1754708589905,73.30956372,177.7,177.69,0.72000001]
[1754708590107,78.44745875,177.7,177.69,0.72000001]
[1754708592294,73.30956372,177.7,177.69,0.72000001]
[1754708592993,2.255617,177.7,177.69,0.72000001]
[1754708593193,0.14216157,177.7,177.69,5.85789504]
[1754708594299,0.28432314,177.71,177.69,5.85789504]
[1754708594486,0.28432314,177.71,177.7,0.72]
[1754708594885,0.28432314,177.71,177.69,1e-08]
[1754708594886,11.85158604,177.71,177.69,1e-08]
[1754708595106,39.14216157,177.7,177.69,1e-08]
[1754708596015,39.14216157,177.7,177.69,0.72000001]
[1754708596812,44.76962358,177.7,177.69,0.72000001]
[1754708597289,44.76962358,177.7,177.69,1e-08]
[1754708598508,44.79962358,177.7,177.69,1e-08]
[1754708598700,44.79962358,177.7,177.69,0.72000001]
[1754708598906,44.79962358,177.7,177.69,1e-08]
[1754708600318,47.05473258,177.7,177.69,1e-08]
[1754708602932,47.71473258,177.7,177.69,1e-08]
[1754708603844,47.05473258,177.7,177.69,1e-08]
[1754708606043,44.79962358,177.7,177.69,1e-08]
[1754708609940,45.45962358,177.7,177.69,1e-08]
[1754708612930,45.74394672,177.7,177.69,1e-08]
[1754708613129,52.31826867,177.7,177.69,1e-08]
[1754708613339,49.03110772,177.7,177.69,1e-08]
[1754708616941,52.31826867,177.7,177.69,1e-08]
[1754708617938,93.42448424,177.7,177.69,1e-08]
[1754708626062,90.13732329,177.7,177.69,1e-08]
[1754708626253,93.42448424,177.7,177.69,1e-08]
[1754708629947,69.51316864,177.7,177.69,1e-08]
[1754708630146,75.99484655,177.7,177.69,1e-08]
[1754708630360,88.78579408,177.7,177.69,1e-08]
[1754708630538,84.08737054,177.7,177.69,1e-08]
[1754708630738,88.78579408,177.7,177.69,1e-08]
[1754708631862,102.85444911,177.7,177.65,0.06]
[1754708632056,29.71364566,177.66,177.65,0.06]
[1754708632261,68.71364566,177.66,177.65,0.06]
[1754708632457,71.62951766,177.66,177.65,0.06]
[1754708633059,77.25824669,177.66,177.65,0.06]
[1754708637244,73.97108574,177.66,177.65,0.06]
[1754708637444,77.25824669,177.66,177.65,0.06]
[1754708638139,92.36446226,177.66,177.65,0.06]
[1754708638566,0.42648471,177.65,177.63,0.06]
[1754708638769,42.73364566,177.64,177.63,0.06]
[1754708640049,49.02300841,177.64,177.63,0.06]
[1754708640463,52.31016941,177.64,177.63,0.06]
[1754708642858,67.41638498,177.64,177.63,1e-08]
[1754708643247,28.39638498,177.64,177.63,1e-08]
[1754708643549,67.41638498,177.64,177.63,1e-08]
[1754708644377,51.65016941,177.64,177.63,1e-08]
[1754708645850,0.28432314,177.6,177.58,3.28716095]
[1754708646065,39.30432314,177.6,177.58,3.28716095]
[1754708647772,39.30432314,177.6,177.59,0.35]
[1754708648369,44.93495377,177.6,177.59,0.35]
[1754708648987,44.93495377,177.6,177.58,0.35]
[1754708649972,44.93495377,177.6,177.57,3.28716095]
[1754708650283,44.93495377,177.6,177.57,3.63716095]
[1754708651481,44.93495377,177.6,177.57,0.35]
[1754708651883,44.93495377,177.6,177.57,3.63716095]
[1754708652063,45.61495377,177.6,177.57,3.28716095]
[1754708652679,44.93495377,177.6,177.57,3.63716095]
[1754708653475,44.93495377,177.6,177.57,3.28716095]
[1754708653680,45.61495377,177.6,177.57,3.28716095]
[1754708653882,0.28432314,177.58,177.56,0.35]
[1754708654061,0.28432314,177.58,177.57,3.28716095]
[1754708654875,0.28432314,177.58,177.56,3.28716095]
[1754708655271,0.28432314,177.58,177.56,3.63716095]
[1754708655475,0.28432314,177.58,177.57,3.28716095]
[1754708656059,0.28432314,177.58,177.57,3.63716095]
[1754708657765,0.28432314,177.59,177.57,3.63716095]
[1754708657958,39.02,177.6,177.58,3.63716095]
[1754708658162,5.632506,177.63,177.59,3.63716095]
[1754708658373,39.18216157,177.62,177.6,3.63716095]
[1754708658574,0.14216157,177.61,177.6,3.63716095]
[1754708658968,39.18216157,177.62,177.6,3.63716095]
[1754708659167,39.18216157,177.62,177.6,3.28716095]
[1754708659365,0.14216157,177.61,177.6,3.28716095]
[1754708659577,0.14216157,177.61,177.6,3.63716095]
[1754708660072,0.14216157,177.61,177.6,3.28716095]
[1754708660268,3.96716095,177.66,177.6,3.63716095]
[1754708660475,39.04,177.65,177.63,3.28716095]
[1754708660781,39.04,177.65,177.62,3.28716095]
[1754708660782,0.42648471,177.64,177.62,3.28716095]
[1754708660964,0.42648471,177.64,177.63,3.28716095]
[1754708661164,0.14216157,177.64,177.62,3.28716095]
[1754708661384,0.42648471,177.64,177.62,3.28716095]
[1754708661584,0.28432314,177.64,177.61,0.35]
[1754708661781,0.28432314,177.64,177.62,3.28716095]
[1754708661985,0.42648471,177.64,177.62,3.28716095]
[1754708662559,0.42648471,177.64,177.62,3.63716095]
[1754708662878,0.42648471,177.64,177.62,3.28716095]
[1754708664888,0.68,177.63,177.6,0.35]
[1754708665074,0.68,177.63,177.62,3.28716095]
[1754708668098,0.28432314,177.62,177.57,0.41]
[1754708668393,0.68,177.61,177.59,3.28716095]
[1754708668966,0.96432314,177.6,177.59,3.28716095]
[1754708669692,0.96432314,177.6,177.57,0.06]
[1754708669693,0.96432314,177.6,177.57,3.34716095]
[1754708669879,0.68,177.59,177.57,0.06]
[1754708670188,39.74,177.59,177.57,0.06]
[1754708670677,0.68,177.58,177.57,0.06]
[1754708671777,6.59558792,177.58,177.57,0.06]
[1754708672481,0.28432314,177.58,177.57,3.34716095]
[1754708672680,5.91558792,177.58,177.57,3.34716095]
[1754708672876,0.96432314,177.58,177.57,3.34716095]
[1754708673304,0.28432314,177.58,177.57,3.34716095]
[1754708674983,6.57558792,177.58,177.57,0.06]
[1754708688803,9.86274887,177.58,177.57,0.06]
[1754708689582,6.57558792,177.58,177.57,0.06]
[1754708689788,9.86274887,177.58,177.57,0.06]
[1754708693021,5.91558792,177.58,177.57,0.06]
[1754708693401,48.90274887,177.58,177.57,0.06]
[1754708696331,64.00896444,177.58,177.57,0.06]
[1754708699830,66.26610944,177.58,177.57,0.06]
[1754708700210,26.0,177.56,177.55,0.06]
[1754708700531,68.65148409,177.56,177.55,0.06]
[1754708700833,71.56875709,177.56,177.55,0.06]
[1754708702230,77.20065616,177.56,177.55,0.06]
[1754708703835,74.94338316,177.56,177.55,0.06]
[1754708704020,35.86338316,177.56,177.55,0.06]
[1754708704220,74.92338316,177.56,177.55,0.06]
[1754708719147,71.63622221,177.56,177.55,0.06]
[1754708719348,74.92338316,177.56,177.55,0.06]
[1754708726760,71.63622221,177.56,177.55,0.06]
[1754708727057,74.92338316,177.56,177.55,0.06]
[1754708728947,0.28432314,177.55,177.49,3.28716095]
[1754708729269,0.28432314,177.53,177.49,3.28716095]
[1754708729446,0.28432314,177.51,177.49,3.28716095]
[1754708733748,0.28432314,177.51,177.46,5.63486637]
[1754708733948,0.28432314,177.51,177.49,3.28716095]
[1754708734668,0.28432314,177.51,177.46,5.63486637]
[1754708735049,0.28432314,177.51,177.46,3.28716095]
[1754708735050,0.69,177.5,177.46,3.28716095]
[1754708735559,0.28432314,177.49,177.47,3.28716095]
[1754708735956,0.28432314,177.49,177.43,26.0]
[1754708736152,0.28432314,177.49,177.47,3.28716095]
[1754708737570,0.28432314,177.49,177.44,5.63570784]
[1754708737766,0.28432314,177.49,177.47,3.28716095]
[1754708743654,0.97432314,177.49,177.47,3.28716095]
[1754708744572,0.28432314,177.49,177.47,3.28716095]
[1754708745156,6.60846596,177.49,177.47,3.28716095]
[1754708745359,0.97432314,177.49,177.47,3.28716095]
[1754708746980,6.60855932,177.49,177.47,3.28716095]
[1754708747480,6.60855932,177.49,177.46,3.28716095]
[1754708747774,0.69,177.48,177.46,3.28716095]
[1754708747957,0.69,177.48,177.42,0.06]
[1754708747958,0.69,177.47,177.44,3.28716095]
[1754708748982,0.97432314,177.47,177.44,3.28716095]
[1754708749786,6.60925549,177.47,177.44,3.28716095]
[1754708749982,0.69,177.46,177.44,3.28716095]
[1754708750155,0.69,177.46,177.42,3.34716095]
[1754708750358,0.69,177.46,177.43,3.28716095]
[1754708750557,0.69,177.46,177.42,0.06]
[1754708750771,0.69,177.46,177.43,3.28716095]
[1754708750984,0.28432314,177.45,177.43,3.28716095]
[1754708751283,0.97432314,177.45,177.42,3.34716095]
[1754708751660,0.97432314,177.45,177.43,3.28716095]
[1754708752880,0.69,177.44,177.42,0.06]
[1754708753089,0.69,177.44,177.42,3.34716095]
[1754708753256,0.97432314,177.43,177.42,0.06]
[1754708753775,0.28432314,177.43,177.42,0.06]
[1754708754974,0.97432314,177.43,177.42,0.06]
[1754708757591,40.13432314,177.43,177.42,0.06]
[1754708759081,0.97432314,177.43,177.42,0.06]
[1754708759289,39.83,177.43,177.42,0.06]
[1754708760167,0.69,177.43,177.42,0.06]
[1754708760366,39.83,177.43,177.42,0.06]
[1754708760794,39.14,177.43,177.42,0.06]
[1754708760996,40.11432314,177.44,177.42,0.06]
[1754708761380,0.69,177.43,177.42,0.06]
[1754708762081,39.83,177.43,177.42,0.06]
[1754708763085,0.69,177.43,177.42,0.06]
[1754708763288,39.42432314,177.44,177.42,0.06]
[1754708763473,40.09432314,177.44,177.42,0.06]
[1754708763676,0.95432314,177.44,177.42,0.06]
[1754708764200,40.09432314,177.44,177.42,0.06]
[1754708764371,0.67,177.43,177.42,0.06]
[1754708765604,0.67,177.46,177.42,3.34716095]
[1754708765908,39.83,177.47,177.45,3.28716095]
[1754708766067,0.28432314,177.46,177.45,3.28716095]
[1754708766272,0.95432314,177.46,177.45,3.28716095]
[1754708769193,0.14216157,177.46,177.45,3.28716095]
[1754708769399,0.14216157,177.47,177.45,3.28716095]
[1754708769813,0.81216157,177.47,177.42,5.69611097]
[1754708770002,0.81216157,177.47,177.45,3.28716095]
[1754708770306,0.14216157,177.47,177.45,3.28716095]
[1754708770510,0.67,177.46,177.45,3.28716095]
[1754708770809,0.81216157,177.47,177.45,3.28716095]
[1754708770982,0.81216157,177.47,177.43,5.63600163]
[1754708771488,0.81216157,177.47,177.45,3.28716095]
[1754708772989,0.84216157,177.47,177.45,3.28716095]
[1754708774809,0.84216157,177.47,177.42,0.06]
[1754708775012,0.84216157,177.47,177.45,3.28716095]
[1754708775799,0.67,177.46,177.45,3.28716095]
[1754708777410,0.03,177.47,177.45,3.28716095]
[1754708777797,0.7,177.47,177.45,3.28716095]
[1754708779512,0.03,177.47,177.45,3.28716095]
[1754708779708,0.67,177.46,177.45,3.28716095]
[1754708782297,0.03,177.47,177.45,3.28716095]
[1754708782504,0.03,177.47,177.46,3.28716095]
[1754708782689,0.03,177.49,177.47,15.10621557]
[1754708782896,0.03,177.49,177.48,16.43580475]
[1754708783725,0.03,177.49,177.48,22.07024243]
[1754708784908,0.03,177.49,177.48,8.92159863]
[1754708785219,0.7,177.49,177.48,3.28716095]
[1754708786236,0.7,177.49,177.47,3.28716095]
[1754708786935,0.7,177.49,177.43,5.63602547]
[1754708787109,0.28432314,177.48,177.46,3.28716095]
[1754708787422,0.67,177.47,177.46,3.28716095]
[1754708788505,0.67,177.47,177.43,5.63602547]
[1754708788706,0.67,177.47,177.46,3.28716095]
[1754708790626,0.31432314,177.49,177.46,3.28716095]
[1754708790815,0.67,177.48,177.45,5.63536582]
[1754708791013,0.67,177.48,177.47,3.28716095]
[1754708791215,0.67,177.48,177.42,5.69634314]
[1754708791416,0.67,177.48,177.46,3.28716095]
[1754708792402,0.67,177.48,177.42,5.69634314]
[1754708792403,0.28432314,177.47,177.45,3.28716095]
[1754708792706,0.67,177.46,177.45,3.28716095]
[1754708793115,0.67,177.46,177.42,0.06]
[1754708793424,0.67,177.46,177.42,3.34716095]
[1754708794632,0.67,177.46,177.45,0.06]
[1754708799839,6.58939583,177.46,177.45,0.06]
[1754708801530,0.28432314,177.46,177.45,3.34716095]
[1754708802001,0.03,177.47,177.45,3.34716095]
[1754708802205,0.03,177.47,177.46,3.28716095]
[1754708804731,0.03,177.47,177.46,5.14744753]
[1754708804927,0.7,177.47,177.46,5.14744753]
[1754708805822,0.03,177.47,177.46,5.14744753]
[1754708810231,0.03,177.47,177.46,10.78252022]
[1754708810430,0.03,177.47,177.46,25.88873579]
[1754708810609,0.03,177.47,177.46,31.03618332]
[1754708811419,0.03,177.47,177.46,25.88873579]
[1754708812015,0.03,177.47,177.46,20.74128826]
[1754708812234,0.7,177.47,177.46,5.14744753]
[1754708813132,0.7,177.47,177.45,0.06]
[1754708813528,0.42648471,177.46,177.45,0.06]
[1754708813712,0.42648471,177.46,177.43,0.06]
[1754708813713,5.57393224,177.46,177.43,0.06]
[1754708814041,6.06251018,177.43,177.42,0.06]
[1754708814622,6.73251018,177.43,177.42,0.06]
[1754708818944,11.87995771,177.43,177.42,0.06]
[1754708819845,52.98617328,177.43,177.42,0.06]
[1754708821254,37.87995771,177.43,177.42,0.06]
[1754708821750,37.59563457,177.43,177.42,0.06]
[1754708821948,76.87563457,177.43,177.42,0.06]
[1754708822248,77.15995771,177.43,177.42,0.06]
[1754708825450,37.87995771,177.43,177.42,0.06]
[1754708825650,77.15995771,177.43,177.42,0.06]
[1754708829357,37.87995771,177.43,177.42,0.06]
[1754708829538,77.13995771,177.43,177.42,0.06]
[1754708836443,71.99251018,177.43,177.42,0.06]
[1754708836645,77.13995771,177.43,177.42,0.06]
[1754708838940,77.16995771,177.43,177.42,0.06]
[1754708842558,51.16995771,177.43,177.42,0.06]
[1754708842969,68.53510328,177.43,177.42,0.06]
[1754708843152,0.42648471,177.42,177.41,0.06]
[1754708843472,32.27393224,177.42,177.41,0.06]
[1754708843969,40.16933338,177.42,177.41,0.06]
[1754708844650,55.27554895,177.42,177.41,0.06]
[1754708845066,29.27554895,177.42,177.41,0.06]
[1754708847382,68.47554895,177.42,177.41,0.06]
[1754708848057,29.27554895,177.42,177.41,0.06]
[1754708848255,68.47554895,177.42,177.41,0.06]
[1754708848954,66.21649095,177.42,177.41,0.06]
[1754708851575,61.06904342,177.42,177.41,0.06]
[1754708851772,66.21649095,177.42,177.41,0.06]
[1754708852390,27.01649095,177.42,177.41,0.06]
[1754708852557,66.19649095,177.42,177.41,0.06]
[1754708852972,27.01649095,177.42,177.41,0.06]
[1754708853282,66.23649095,177.42,177.41,0.06]
[1754708853875,27.01649095,177.42,177.41,0.06]
[1754708854177,66.21649095,177.42,177.41,0.06]
[1754708855569,27.01649095,177.42,177.41,0.06]
[1754708855975,66.21649095,177.42,177.41,0.06]
[1754708856279,27.01649095,177.42,177.41,0.06]
[1754708856771,66.21649095,177.42,177.41,0.06]
[1754708857167,51.11027538,177.42,177.41,0.06]
[1754708861377,51.14027538,177.42,177.41,0.06]
[1754708862463,50.44027538,177.42,177.41,0.06]
[1754708862664,48.59133166,177.42,177.41,0.06]
[1754708863467,0.45648471,177.42,177.41,0.06]
[1754708863779,39.25,177.42,177.41,0.18]
[1754708863983,39.67648471,177.42,177.41,0.18]
[1754708864982,39.67648471,177.42,177.41,0.06]
[1754708865178,45.31282785,177.42,177.41,0.06]
[1754708867993,50.46533487,177.42,177.41,0.06]
[1754708868889,51.15533487,177.42,177.41,0.06]
[1754708871169,77.15533487,177.42,177.41,0.06]
[1754708872780,92.26155044,177.42,177.41,0.06]
[1754708872986,99.03600411,177.42,177.41,0.06]
[1754708874398,99.04141531,177.42,177.41,0.06]
[1754708874780,73.04141531,177.42,177.41,0.06]
[1754708875903,73.04076683,177.42,177.41,0.06]
[1754708876084,70.9552799,177.42,177.41,0.06]
[1754708876283,73.04061579,177.42,177.41,0.06]
[1754708876782,66.26155044,177.42,177.41,0.06]
[1754708876996,73.04054064,177.42,177.41,0.06]
[1754708879082,73.04045062,177.42,177.41,0.06]
[1754708879905,73.04045062,177.42,177.4,0.06]
[1754708879906,0.42648471,177.41,177.39,0.06]
[1754708880101,86.5552073,177.4,177.39,0.06]
[1754708880484,15.53270028,177.39,177.38,0.06]
[1754708880692,21.3752073,177.39,177.38,0.06]
[1754708881903,27.01250365,177.39,177.38,0.06]
[1754708888814,25.16035414,177.39,177.38,0.06]
[1754708891516,21.85999663,177.39,177.38,0.06]
[1754708891729,34.93765386,177.39,177.38,0.06]
[1754708892028,35.36413857,177.39,177.38,0.06]
[1754708892795,36.07413857,177.39,177.38,0.06]
[1754708894020,75.29413857,177.39,177.38,0.06]
[1754708895502,49.29413857,177.39,177.38,0.06]
[1754708896827,64.40035414,177.39,177.38,0.06]
[1754708898825,26.0,177.36,177.35,0.06]
[1754708899031,68.92684222,177.36,177.35,0.06]
[1754708899228,69.63684222,177.36,177.35,0.06]
[1754708900026,65.62648471,177.36,177.35,0.06]
[1754708900528,68.92684222,177.36,177.35,0.06]
[1754708900732,26.0,177.36,177.35,0.18]
[1754708900923,70.83824988,177.36,177.35,0.18]
[1754708901236,70.98041145,177.36,177.35,0.06]
[1754708901407,71.12257302,177.36,177.35,0.06]
[1754708902925,71.26473459,177.36,177.35,0.06]
[1754708910023,71.97473459,177.36,177.35,0.06]
[1754708915414,32.77473459,177.36,177.35,0.06]
[1754708915622,71.97473459,177.36,177.35,0.06]
[1754708920919,71.26473459,177.36,177.35,0.06]
[1754708921341,70.81824988,177.36,177.35,0.18]
[1754708921555,70.81824988,177.36,177.35,0.06]
[1754708921840,65.18,177.36,177.35,0.06]
[1754708922010,65.60648471,177.36,177.35,0.06]
[1754708922211,65.46432314,177.36,177.35,0.06]
[1754708922474,71.24473459,177.36,177.35,0.06]
[1754708923135,71.94473459,177.36,177.35,0.06]
[1754708926856,70.81824988,177.36,177.35,0.06]
[1754708927229,70.96041145,177.36,177.35,0.06]
[1754708927847,71.94473459,177.36,177.35,0.06]
[1754708930455,5.92313468,177.35,177.31,3.16035751]
[1754708930622,39.2,177.34,177.31,3.16035751]
[1754708932027,39.2,177.34,177.33,0.06]
[1754708937655,45.53888575,177.34,177.33,0.06]
[1754708937842,45.82320889,177.34,177.33,0.06]
[1754708939840,45.96537046,177.34,177.33,0.06]
[1754708953550,6.76537046,177.34,177.33,0.06]
[1754708953755,45.90537046,177.34,177.33,0.06]
[1754708964889,45.76320889,177.34,177.33,0.06]
[1754708971100,45.79320889,177.34,177.33,0.06]
[1754708982975,49.0935664,177.34,177.31,0.06]
[1754708983181,3.58468065,177.32,177.31,0.06]
[1754708983387,42.72468065,177.32,177.31,0.06]
[1754708983584,43.38468065,177.32,177.31,0.06]
[1754708983996,40.08432314,177.32,177.31,0.06]
[1754708984798,45.7238449,177.32,177.31,0.06]
[1754708985005,45.0638449,177.32,177.31,0.06]
[1754708985678,45.7238449,177.32,177.31,0.06]
[1754708986098,40.08432314,177.32,177.31,0.06]
[1754708986288,39.14,177.32,177.31,0.06]
[1754708986487,39.42432314,177.32,177.31,0.06]
[1754708986700,0.28432314,177.32,177.31,0.06]
[1754708987004,40.08432314,177.32,177.31,0.06]
[1754708989901,39.42432314,177.32,177.31,0.06]
[1754708990077,39.14,177.32,177.31,0.06]
[1754708990283,39.14,177.33,177.31,3.36035751]
[1754708990492,0.17216157,177.34,177.31,3.42035751]
[1754708990783,39.31216157,177.34,177.31,3.42035751]
[1754708991278,39.97216157,177.34,177.32,3.30035751]
[1754708991803,0.03,177.34,177.33,3.30035751]
[1754708992805,0.03,177.34,177.32,0.06]
[1754708992993,0.03,177.34,177.33,3.30035751]
[1754708993800,0.03,177.34,177.31,0.12]
[1754708994003,0.66,177.33,177.31,3.36035751]
[1754708994199,0.66,177.33,177.31,0.06]
[1754708994499,0.66,177.33,177.31,3.36035751]
[1754708995394,0.66,177.33,177.31,0.06]
[1754708995591,0.66,177.33,177.31,3.36035751]
[1754708996197,0.66,177.33,177.31,0.06]
[1754708996397,0.66,177.33,177.31,3.36035751]
[1754708997406,0.03,177.34,177.32,3.36035751]
[1754708997707,0.03,177.34,177.33,3.36035751]
[1754708998097,0.03,177.34,177.33,3.30035751]
[1754708998300,0.03,177.34,177.33,3.36035751]
[1754708998797,0.03,177.34,177.33,8.99956125]
[1754709000491,0.03,177.34,177.33,11.25836325]
[1754709001497,0.03,177.35,177.33,26.36457882]
[1754709001695,0.03,177.35,177.34,18.40657308]
[1754709001902,0.03,177.36,177.35,15.10621557]
[1754709002103,0.03,177.36,177.35,44.40657308]
[1754709002295,0.03,177.37,177.35,45.03042986]
[1754709002518,0.03,177.37,177.36,18.46657308]
[1754709002702,0.03,177.37,177.36,20.72486508]
[1754709003218,0.03,177.38,177.37,15.10621557]
[1754709003403,0.03,177.38,177.37,18.46657308]
[1754709005814,0.03,177.38,177.37,24.10450508]
[1754709007496,0.03,177.38,177.37,26.36267008]
[1754709007693,0.03,177.38,177.37,26.30267008]
[1754709008107,0.03,177.38,177.37,8.93828951]
[1754709008421,0.03,177.38,177.37,39.56397212]
[1754709009422,0.03,177.38,177.37,26.36254208]
[1754709010313,0.03,177.38,177.37,39.56397212]
[1754709010819,0.03,177.38,177.37,26.36254208]
[1754709013916,0.03,177.38,177.37,26.30254208]
[1754709014625,0.03,177.38,177.37,26.36254208]
[1754709015429,0.03,177.38,177.37,39.56397212]
[1754709016523,0.03,177.38,177.37,65.56397212]
[1754709016731,0.03,177.4,177.38,31.60800312]
[1754709016926,0.03,177.4,177.38,71.35176453]
[1754709017432,0.03,177.4,177.38,73.60954753]
[1754709017931,0.03,177.4,177.38,78.68340028]
[1754709020627,0.03,177.4,177.38,79.24716169]
[1754709021028,0.03,177.4,177.39,31.60800312]
[1754709021233,0.03,177.4,177.39,31.66800312]
[1754709021435,0.03,177.4,177.39,33.92578512]
[1754709021817,0.03,177.41,177.4,15.10621557]
[1754709022026,0.03,177.41,177.4,83.52657308]
[1754709022331,0.03,177.41,177.4,84.15027093]
[1754709022515,0.03,177.41,177.4,86.40792593]
[1754709023323,0.03,177.41,177.4,91.9849045]
[1754709025538,0.03,177.41,177.4,91.42120665]
[1754709026045,0.7,177.41,177.4,91.42120665]
[1754709028127,0.03,177.41,177.4,91.42120665]
[1754709029248,0.7,177.41,177.4,91.42120665]
[1754709029642,0.03,177.41,177.4,91.42120665]
[1754709032035,0.03,177.41,177.4,52.30120665]
[1754709032242,0.7,177.41,177.4,89.14355165]
[1754709033530,0.03,177.41,177.4,89.14355165]
[1754709033755,0.03,177.43,177.42,41.10621557]
[1754709033947,0.03,177.43,177.42,83.54657308]
[1754709035766,0.03,177.43,177.42,89.18291622]
[1754709036954,0.03,177.43,177.42,89.74655053]
[1754709038954,0.03,177.43,177.42,92.00369553]
[1754709040337,0.7,177.43,177.42,92.00369553]
[1754709040548,0.7,177.43,177.42,91.44006122]
[1754709042337,0.03,177.43,177.42,91.44006122]
[1754709046157,0.7,177.43,177.42,91.44006122]
[1754709053056,0.03,177.43,177.42,91.44006122]
[1754709056374,0.03,177.45,177.42,92.06369553]
[1754709056571,0.03,177.49,177.45,41.10621557]
[1754709056766,0.03,177.49,177.47,18.40657308]
[1754709057072,0.7,177.49,177.47,18.40657308]
[1754709057471,0.7,177.49,177.47,20.66308208]
[1754709057676,0.7,177.48,177.47,20.66308208]
[1754709058156,0.7,177.48,177.47,26.29783724]
[1754709058775,0.7,177.48,177.47,28.14238712]
[1754709060667,0.7,177.48,177.47,13.03617155]
[1754709060973,0.7,177.48,177.47,49.91966255]
[1754709061172,0.7,177.48,177.47,44.28490739]
[1754709061875,0.7,177.48,177.47,49.91966255]
[1754709063081,0.03,177.48,177.47,65.02587812]
[1754709063688,0.73,177.48,177.47,65.02587812]
[1754709063870,0.73,177.48,177.47,67.28264112]
[1754709065078,0.73,177.48,177.47,62.13773373]
[1754709065272,0.73,177.48,177.47,67.28264112]